bitfinex/quotes_ETHUSD_20220118
["timestamp","ask_amount","ask_price","bid_price","bid_amount"]
[1642471424282,2.66301724,3217.7,3217.3,1.52863727]
[1642471424482,2.96301724,3217.7,3217.3,1.52863727]
[1642471425083,2.96301724,3217.7,3217.3,1.52638955]
[1642471425285,3.0,3217.6,3217.1,0.0008]
[1642471425683,3.0,3217.6,3217.2,0.00113685]
[1642471425883,2.66301724,3217.7,3217.2,0.00113685]
[1642471426283,2.96301724,3217.7,3217.2,0.00113685]
[1642471426683,2.66131197,3217.5,3217.2,0.00113685]
[1642471428030,3.07021295,3217.4,3217.2,0.00113685]
[1642471431034,2.77621295,3217.4,3217.2,0.00113685]
[1642471431683,2.66131197,3217.3,3217.2,0.00113685]
[1642471432482,2.77621295,3217.4,3217.2,0.00113685]
[1642471432883,2.77621295,3217.4,3217.1,0.0008]
[1642471432884,3.05,3217.3,3216.7,0.1200392]
[1642471433283,3.05,3217.3,3216.8,0.00227369]
[1642471433687,0.1242,3217.3,3216.8,0.00227369]
[1642471433988,0.1242,3217.3,3216.6,0.05005]
[1642471433989,0.1242,3217.3,3216.7,0.00284211]
[1642471434186,2.31463091,3217.0,3216.7,0.00284211]
[1642471435830,2.31463091,3216.9,3216.7,0.00284211]
[1642471436030,2.02163091,3216.9,3216.7,0.00284211]
[1642471436637,2.66131197,3216.8,3216.7,0.00284211]
[1642471437435,2.02163091,3216.9,3216.7,0.00284211]
[1642471438237,2.66131197,3216.8,3216.7,0.00284211]
[1642471439081,2.02163091,3216.9,3216.7,0.00284211]
[1642471439681,2.66131197,3216.8,3216.7,0.00284211]
[1642471439883,2.66511564,3216.8,3216.7,0.00284211]
[1642471440684,0.00380367,3216.8,3216.7,0.00284211]
[1642471441084,1.73293458,3216.9,3216.7,0.00284211]
[1642471441287,2.66131197,3216.8,3216.7,0.00284211]
[1642471442089,1.73293458,3216.9,3216.7,0.00284211]
[1642471444835,1.7386405,3216.9,3216.7,0.00284211]
[1642471445536,1.6886405,3216.9,3216.7,0.00284211]
[1642471445737,2.66131197,3216.8,3216.7,0.00284211]
[1642471446136,2.36881197,3216.8,3216.7,0.00059439]
[1642471447183,1.6886405,3216.9,3216.7,0.00059439]
[1642471447981,0.1242,3217.0,3216.7,0.00059439]
[1642471449882,0.1242,3217.0,3216.8,0.00788388]
[1642471451338,2.90188555,3217.1,3216.8,0.00788388]
[1642471451735,0.00111088,3217.0,3216.8,0.00788388]
[1642471453136,0.00111088,3217.0,3216.8,0.03247317]
[1642471453786,0.00111088,3217.0,3216.8,0.00788388]
[1642471453979,2.31346903,3217.0,3216.8,1.23304662]
[1642471454784,2.31346903,3217.0,3216.9,2.65]
[1642471454981,3.79754701,3217.7,3217.0,5.7]
[1642471455183,3.79754701,3217.7,3217.1,2.447]
[1642471455380,3.79754701,3217.7,3217.2,0.02491172]
[1642471455381,0.00341054,3217.6,3217.2,0.02491172]
[1642471455581,0.00341054,3217.6,3217.3,0.447]
[1642471455780,0.00284211,3217.5,3217.4,1.98061994]
[1642471456384,3.50718912,3218.2,3217.4,1.98061994]
[1642471456784,0.00341054,3218.1,3217.4,1.98061994]
[1642471456984,0.00341054,3218.1,3217.5,0.1242]
[1642471457184,0.00284212,3218.0,3217.5,2.39904849]
[1642471457632,0.0022737,3217.9,3217.5,2.39904849]
[1642471458031,0.00170527,3217.8,3217.5,2.39904849]
[1642471458431,5.0005,3218.4,3217.5,2.39904849]
[1642471458432,0.00113685,3217.7,3217.5,2.39904849]
[1642471458632,0.00113685,3217.7,3217.6,1.85924764]
[1642471458834,3.0940313,3218.0,3217.6,1.98344764]
[1642471459033,3.0940313,3218.0,3217.7,0.1242]
[1642471460835,3.0940313,3218.0,3217.9,1.23470519]
[1642471461038,3.0940313,3218.1,3217.7,3.07594129]
[1642471461298,0.00284212,3218.0,3217.7,2.07594129]
[1642471461482,2.80487342,3218.1,3217.7,2.07594129]
[1642471461682,2.80487342,3218.1,3217.8,0.00113685]
[1642471462284,0.00674316,3218.6,3217.8,0.00113685]
[1642471462686,0.00284212,3218.5,3217.8,0.00113685]
[1642471463085,0.00227369,3218.4,3217.8,0.00113685]
[1642471463486,2.32314261,3218.0,3217.8,0.00113685]
[1642471464786,2.32314261,3218.0,3217.9,0.00785617]
[1642471466635,2.02284261,3218.0,3217.9,0.00785617]
[1642471467235,0.09933,3218.2,3217.9,0.00560845]
[1642471467434,2.66100742,3218.0,3217.9,0.00560845]
[1642471468804,2.66100742,3218.1,3217.9,0.00560845]
[1642471468998,2.66100742,3218.1,3217.5,3.1]
[1642471468999,0.00355033,3217.8,3217.5,3.1]
[1642471470198,0.00355033,3217.8,3217.6,0.00113684]
[1642471470795,2.66100742,3217.7,3217.6,0.00113684]
[1642471471600,0.00355033,3217.8,3217.6,0.00113684]
[1642471471799,2.36535775,3217.9,3217.6,0.00113684]
[1642471472201,3.09710982,3218.0,3217.6,0.00113684]
[1642471474943,3.1014006,3218.0,3217.6,0.00113684]
[1642471475343,2.31894954,3217.8,3217.6,0.00113684]
[1642471476785,2.02944954,3217.8,3217.6,0.00113684]
[1642471477183,0.00542763,3218.0,3217.6,0.00113684]
[1642471477482,3.1014006,3218.0,3217.6,0.12533684]
[1642471479282,1.5466021,3217.7,3217.6,0.12533684]
[1642471479483,1.5466021,3217.7,3217.6,2.02133167]
[1642471481836,1.2552021,3217.7,3217.6,2.02133167]
[1642471482239,0.00542763,3218.0,3217.6,2.02133167]
[1642471484090,0.00542763,3218.0,3217.6,0.12533684]
[1642471484288,0.00542763,3218.0,3217.6,1.88336264]
[1642471486995,2.02747042,3218.1,3217.6,0.12533684]
[1642471487195,2.02747042,3218.0,3217.7,0.00170527]
[1642471487635,2.02747042,3218.0,3217.6,0.00227369]
[1642471488036,0.00113685,3218.2,3217.6,0.00227369]
[1642471488237,3.09710982,3218.2,3217.6,2.597e-05]
[1642471488437,0.00281614,3218.1,3217.6,2.597e-05]
[1642471488838,0.00224772,3218.0,3217.6,2.597e-05]
[1642471489239,0.0016793,3217.9,3217.6,2.597e-05]
[1642471489641,0.00111087,3217.8,3217.6,2.597e-05]
[1642471490040,3.10265104,3218.1,3217.6,2.597e-05]
[1642471490440,0.00224772,3218.0,3217.6,1.81880326]
[1642471490642,0.00224772,3218.0,3217.6,2.597e-05]
[1642471490842,0.0016793,3217.9,3217.6,2.597e-05]
[1642471491288,0.00111087,3217.8,3217.6,2.597e-05]
[1642471491688,3.0998349,3218.1,3217.6,2.597e-05]
[1642471491689,0.00224772,3218.0,3217.6,2.597e-05]
[1642471492091,10.21044956,3218.4,3217.6,2.597e-05]
[1642471492292,10.21044956,3218.4,3217.6,0.00170527]
[1642471492492,2.66100609,3218.0,3217.6,0.00170527]
[1642471493291,2.66327978,3218.3,3217.6,0.00170527]
[1642471493491,2.66327978,3218.3,3217.6,0.12590527]
[1642471493691,0.00170527,3218.2,3217.6,0.12590527]
[1642471493894,0.00170527,3218.2,3217.7,0.00113685]
[1642471494092,0.00113684,3218.1,3217.7,0.00113685]
[1642471494492,0.00170527,3218.2,3217.6,0.00170527]
[1642471494892,0.00113684,3218.1,3217.6,0.00170527]
[1642471495335,0.00170527,3218.2,3217.6,0.00170527]
[1642471495735,0.00113684,3218.1,3217.6,0.00170527]
[1642471497138,2.37034293,3218.2,3217.6,0.12590527]
[1642471497337,2.37034293,3218.2,3217.6,0.12704211]
[1642471497541,2.37034293,3218.2,3217.7,0.00227369]
[1642471497740,0.00434528,3218.3,3217.8,0.1242]
[1642471498142,0.00434528,3218.3,3217.9,0.00113684]
[1642471498794,0.00434528,3218.3,3217.7,0.00227369]
[1642471500197,1.53570833,3217.9,3217.7,0.00227369]
[1642471501197,1.53570833,3217.9,3217.7,1.89672442]
[1642471501601,1.53570833,3217.9,3217.8,4.23726614]
[1642471501805,2.30193026,3218.0,3217.8,6.83660851]
[1642471502002,2.30193026,3218.0,3217.9,1.94189852]
[1642471502303,2.00813026,3218.0,3217.9,2.51423536]
[1642471502540,2.00813026,3218.0,3217.9,3.51423536]
[1642471502937,2.00813026,3218.0,3217.9,2.51423536]
[1642471503137,3.09597297,3218.2,3217.9,3.51423536]
[1642471503336,0.00434528,3218.3,3218.0,0.1242]
[1642471503540,0.00434528,3218.3,3218.1,0.447]
[1642471503741,0.00434528,3218.3,3218.2,0.1242]
[1642471503944,0.00434528,3218.3,3218.2,0.5712]
[1642471504141,0.00548213,3218.3,3218.2,0.5712]
[1642471504344,0.00548213,3218.3,3218.2,0.8712]
[1642471504942,0.00548213,3218.3,3218.2,3.0712]
[1642471505145,0.00548213,3218.3,3218.2,3.079727]
[1642471505146,0.00113685,3218.3,3218.2,3.079727]
[1642471505342,0.00113685,3218.3,3218.2,1.01664347]
[1642471505541,0.00113685,3218.3,3218.2,3.06110311]
[1642471506391,0.00113685,3218.3,3218.2,4.36110311]
[1642471507393,2.79955754,3218.9,3218.3,6.27639861]
[1642471507692,1.33365151,3220.0,3218.4,3.64371119]
[1642471507693,0.00113685,3218.5,3218.4,3.64371119]
[1642471507891,0.00113685,3218.5,3218.4,4.24371119]
[1642471508091,2.79955754,3219.1,3218.4,4.24371119]
[1642471508292,2.79955754,3219.1,3218.6,1.45307977]
[1642471508591,0.00397897,3219.0,3218.7,3.06155369]
[1642471508794,0.00397897,3219.0,3218.8,0.447]
[1642471508992,3.63279598,3219.4,3218.8,1.447]
[1642471509191,3.87190434,3219.6,3218.8,0.447]
[1642471509391,0.00568424,3219.3,3218.8,0.447]
[1642471509594,0.00568424,3219.3,3218.8,1.447]
[1642471509791,3.87190434,3219.7,3218.8,1.447]
[1642471509792,0.00511581,3219.2,3218.8,1.447]
[1642471510049,0.00511581,3219.2,3218.8,1.46291147]
[1642471510239,0.00454739,3219.1,3218.8,1.46291147]
[1642471510438,0.00454739,3219.1,3218.8,0.46291147]
[1642471510643,0.00397897,3219.0,3218.8,0.76291147]
[1642471510942,0.00341054,3218.9,3218.8,0.76291147]
[1642471512545,2.16227785,3219.8,3218.8,0.76291147]
[1642471512947,0.00454739,3219.7,3218.8,0.76291147]
[1642471513346,0.00397897,3219.6,3218.8,0.76291147]
[1642471513786,0.00341054,3219.5,3218.8,0.76291147]
[1642471514187,0.00284212,3219.4,3218.8,0.76291147]
[1642471514587,0.0022737,3219.3,3218.8,0.76291147]
[1642471514989,0.00170527,3219.2,3219.0,0.00745996]
[1642471515388,0.10060685,3219.1,3219.0,0.00745996]
[1642471516187,0.00113685,3219.1,3218.8,0.00229485]
[1642471516996,0.09948,3219.0,3218.8,0.00229485]
[1642471517640,1.35434381,3219.0,3218.8,0.00229485]
[1642471518042,1.35434381,3219.0,3218.9,0.00113684]
[1642471518440,5.5126,3219.2,3218.9,0.00113684]
[1642471518441,1.53653017,3219.1,3218.9,0.00113684]
[1642471519242,10.99323017,3219.2,3218.9,0.00113684]
[1642471519444,1.53653017,3219.2,3218.9,0.00113684]
[1642471520046,0.00386625,3219.1,3218.9,0.00113684]
[1642471522697,1.24789642,3219.2,3218.9,0.00113684]
[1642471524799,6.71549509,3219.4,3218.9,0.00113684]
[1642471525049,0.0042531,3219.2,3218.9,0.00113684]
[1642471527853,4.12358995,3219.4,3218.9,0.00113684]
[1642471528052,4.12358995,3219.4,3218.9,0.0022737]
[1642471528451,6.42888504,3219.4,3218.9,0.0022737]
[1642471529492,4.12358995,3219.4,3218.9,0.0022737]
[1642471529891,0.0063757,3219.3,3218.9,0.0022737]
[1642471531700,4.25660635,3218.6,3218.4,0.1242]
[1642471532099,4.25660635,3218.6,3218.5,0.00227369]
[1642471532941,5.37669423,3218.6,3218.5,0.00227369]
[1642471533144,3.96030635,3218.6,3218.5,0.00227369]
[1642471534842,3.96030635,3218.6,3217.7,0.00682108]
[1642471535043,3.96030635,3218.6,3217.8,0.1242]
[1642471535446,3.96030635,3218.6,3217.9,0.00568423]
[1642471535648,3.96030635,3218.6,3218.1,0.0128504]
[1642471536045,3.96030635,3218.6,3218.2,0.00397896]
[1642471536498,2.30529509,3218.4,3218.2,0.00397896]
[1642471536897,2.30529509,3218.4,3218.3,0.1242]
[1642471537101,2.30529509,3218.4,3218.0,0.1242]
[1642471537297,2.30529509,3218.4,3218.3,0.00341054]
[1642471537500,2.30529509,3218.4,3218.1,0.00454739]
[1642471537900,2.01559509,3218.4,3217.9,0.00568423]
[1642471538100,2.01559509,3218.4,3218.0,0.1242]
[1642471538499,2.01559509,3218.4,3218.1,0.00454739]
[1642471538901,2.6605544,3218.5,3218.1,0.00454739]
[1642471539101,2.6605544,3218.5,3217.8,0.1242]
[1642471539102,2.6605544,3218.5,3217.9,0.00568423]
[1642471539302,2.6605544,3218.5,3218.0,0.1242]
[1642471539703,2.6605544,3218.5,3218.1,0.00454739]
[1642471539904,0.00638126,3218.4,3218.1,0.00454739]
[1642471540341,0.00638126,3218.4,3218.0,3.1]
[1642471540740,0.00638126,3218.4,3218.1,0.00454739]
[1642471541445,2.6605544,3218.3,3218.1,0.00454739]
[1642471542847,2.6605544,3218.3,3218.2,0.1242]
[1642471543046,2.3626544,3218.3,3218.2,0.1242]
[1642471543246,2.3626544,3218.3,3218.2,0.12817896]
[1642471543448,0.00638126,3218.4,3218.2,0.00397896]
[1642471544090,0.00638126,3218.4,3218.1,0.00454739]
[1642471544890,3.96030635,3218.6,3218.1,0.00454739]
[1642471545092,3.96030635,3218.6,3218.1,1.81024846]
[1642471545490,3.96030635,3218.6,3218.2,0.00397896]
[1642471548242,3.66550635,3218.6,3218.2,0.00397896]
[1642471548941,3.66550635,3218.6,3218.2,0.12817896]
[1642471549142,3.66550635,3218.6,3218.1,0.00454739]
[1642471549342,3.66550635,3218.6,3218.3,0.00341054]
[1642471549543,3.66550635,3218.6,3218.1,0.00454739]
[1642471553197,3.37310635,3218.6,3218.1,0.00454739]
[1642471553397,1.29401369,3218.5,3218.1,0.00454739]
[1642471554798,2.84064011,3218.5,3218.1,0.00454739]
[1642471555646,4.05480049,3218.5,3218.1,0.00454739]
[1642471556048,4.05480049,3218.5,3217.5,0.1242]
[1642471556049,0.00756329,3218.3,3217.5,0.1242]
[1642471556247,4.55,3218.4,3217.5,0.1242]
[1642471556248,4.55170527,3218.4,3217.5,0.1242]
[1642471556446,2.2919514,3218.3,3217.6,0.00284211]
[1642471556650,2.29308825,3218.3,3217.6,0.00284211]
[1642471557047,1.2147,3218.2,3217.6,0.00284211]
[1642471558048,1.5402495,3217.7,3217.6,0.00284211]
[1642471558248,1.2477495,3217.7,3217.6,0.00284211]
[1642471558789,1.2477495,3217.7,3217.1,0.00568423]
[1642471558991,1.2477495,3217.7,3217.2,0.1242]
[1642471559391,1.2307,3217.8,3217.3,0.00454738]
[1642471559591,1.2307,3217.8,3217.4,0.1242]
[1642471559992,0.00478391,3217.7,3217.5,0.00341054]
[1642471560593,0.00478391,3217.7,3217.1,0.00568423]
[1642471561298,0.00478391,3217.7,3217.4,3.1]
[1642471561700,0.00478391,3217.7,3217.5,0.00341054]
[1642471563445,2.01022524,3217.9,3217.5,0.00341054]
[1642471563645,2.66098762,3217.6,3217.5,0.00341054]
[1642471564446,2.01022524,3217.8,3217.5,0.00341054]
[1642471566294,2.66098762,3217.9,3217.5,0.00341054]
[1642471566700,2.66098762,3217.9,3217.5,0.45041054]
[1642471568500,2.36828762,3217.9,3217.5,0.45041054]
[1642471569100,1.5447517,3217.6,3217.5,0.45041054]
[1642471570054,7.38541279,3218.0,3217.5,0.45041054]
[1642471572149,1.54449094,3217.6,3217.5,0.45041054]
[1642471573048,2.3167364,3217.8,3217.5,0.45041054]
[1642471573248,7.38541279,3218.0,3217.5,0.45041054]
[1642471573249,2.3167364,3217.7,3217.5,0.45041054]
[1642471573649,2.0191364,3217.7,3217.5,0.45041054]
[1642471574296,7.38541279,3218.0,3217.5,0.45041054]
[1642471574898,9.45985912,3218.0,3217.5,0.45041054]
[1642471575100,7.38541279,3218.0,3217.5,0.45041054]
[1642471575498,3.07651279,3217.9,3217.5,0.45041054]
[1642471576605,7.50221279,3218.0,3217.5,0.45041054]
[1642471577406,9.57125626,3218.0,3217.5,0.45041054]
[1642471577649,7.50221279,3218.0,3217.5,0.45041054]
[1642471578052,3.07651279,3217.9,3217.5,0.45041054]
[1642471578850,2.77581279,3217.9,3217.5,0.45041054]
[1642471580550,2.77581279,3217.9,3217.6,0.1242]
[1642471580851,2.77581279,3217.9,3217.7,0.00227369]
[1642471581051,4.3089,3218.0,3217.7,0.00227369]
[1642471582305,4.3089,3218.0,3217.7,0.44927369]
[1642471582604,4.3089,3218.0,3217.8,0.00170527]
[1642471583804,2.30902316,3217.9,3217.8,0.00170527]
[1642471584003,2.01082316,3217.9,3217.8,0.00170527]
[1642471584702,3.9173,3218.1,3217.8,0.00170527]
[1642471585146,1.51753086,3218.3,3217.8,0.00170527]
[1642471585347,1.51753086,3218.3,3217.8,0.12590527]
[1642471585746,1.51753086,3218.3,3217.9,0.00113684]
[1642471586550,1.51639401,3218.3,3217.9,0.00113684]
[1642471587252,3.09216139,3218.4,3218.0,0.447]
[1642471587653,3.09216139,3218.4,3218.0,2.447]
[1642471587851,3.09216139,3218.4,3218.0,0.447]
[1642471588252,3.09216139,3218.4,3218.1,1.21462429]
[1642471588452,3.09216139,3218.4,3218.2,0.447]
[1642471589099,5.4597838,3218.4,3218.2,0.447]
[1642471589299,2.66072241,3218.4,3218.2,0.447]
[1642471589498,2.66072241,3218.4,3218.3,1.81932773]
[1642471589698,2.66072241,3218.4,3218.3,0.447]
[1642471589901,2.66242768,3218.4,3218.3,0.447]
[1642471590903,2.66242768,3218.4,3218.3,2.28945703]
[1642471591104,2.66242768,3218.4,3218.3,0.447]
[1642471591706,0.00170527,3218.4,3218.3,0.447]
[1642471592406,0.00170527,3218.4,3218.3,2.28254922]
[1642471592659,0.00170527,3218.4,3218.3,2.58254922]
[1642471593155,0.00170527,3218.4,3218.3,8.28774922]
[1642471593355,2.66242768,3218.4,3218.3,8.28774922]
[1642471593657,2.66242768,3218.4,3218.3,7.98774922]
[1642471593855,2.66242768,3218.4,3218.3,6.1522]
[1642471594156,2.36952768,3218.4,3218.3,6.1522]
[1642471594558,2.36952768,3218.4,3218.3,7.96673096]
[1642471594758,2.36952768,3218.4,3218.3,6.028]
[1642471595162,2.36952768,3218.4,3218.3,7.84459522]
[1642471596161,2.36952768,3218.4,3218.3,6.028]
[1642471596603,2.36952768,3218.4,3218.3,7.85327472]
[1642471596903,2.36952768,3218.4,3218.3,7.85359598]
[1642471597104,2.36952768,3218.4,3218.3,7.8700803]
[1642471597505,2.36952768,3218.4,3218.3,6.028]
[1642471597904,3.37310635,3218.6,3218.3,6.028]
[1642471598305,3.37310635,3218.6,3218.4,1.76956784]
[1642471598604,3.37310635,3218.6,3218.5,0.447]
[1642471599007,3.3742432,3218.6,3218.5,0.447]
[1642471599206,3.0804432,3218.6,3218.5,0.447]
[1642471601246,3.0804432,3218.6,3218.5,3.547]
[1642471603055,3.0804432,3218.6,3218.5,5.31116237]
[1642471604298,2.7857432,3218.6,3218.5,3.547]
[1642471604902,2.7857432,3218.6,3218.5,5.37040161]
[1642471605507,2.7857432,3218.6,3218.5,3.547]
[1642471605905,2.7857432,3218.6,3218.5,5.36929856]
[1642471606905,2.7857432,3218.6,3218.5,5.38116614]
[1642471607107,2.7857432,3218.6,3218.5,3.547]
[1642471608644,2.7857432,3218.6,3218.5,5.36447006]
[1642471608845,2.7857432,3218.6,3218.5,5.37355576]
[1642471609245,2.7857432,3218.6,3218.5,5.36607586]
[1642471609445,2.4879432,3218.6,3218.5,5.36607586]
[1642471609647,2.4879432,3218.6,3218.5,5.37698745]
[1642471610749,2.4879432,3218.6,3218.5,3.547]
[1642471610945,2.4879432,3218.6,3218.5,5.36492975]
[1642471611148,2.4879432,3218.6,3218.5,3.547]
[1642471611403,2.4879432,3218.6,3218.5,5.36616204]
[1642471611604,2.4879432,3218.6,3218.5,3.547]
[1642471614508,2.1944432,3218.6,3218.5,3.547]
[1642471614910,2.1944432,3218.6,3218.5,5.58042008]
[1642471615346,4.85505262,3218.6,3218.5,5.58042008]
[1642471617555,4.85505262,3218.6,3218.5,3.6712]
[1642471617758,4.85505262,3218.6,3218.5,5.48345651]
[1642471617955,4.85505262,3218.6,3218.5,5.48774676]
[1642471618355,4.85505262,3218.6,3218.5,3.6712]
[1642471619597,4.55975262,3218.6,3218.5,3.547]
[1642471619798,4.55975262,3218.6,3218.5,5.37588613]
[1642471620200,4.55975262,3218.6,3218.5,5.38033333]
[1642471620799,4.55975262,3218.6,3218.5,5.50453333]
[1642471621606,4.55975262,3218.6,3218.5,3.6712]
[1642471622204,4.55975262,3218.6,3218.5,3.547]
[1642471624748,4.26295262,3218.6,3218.5,3.547]
[1642471627302,5.80188589,3218.6,3218.5,3.547]
[1642471628907,4.11651577,3218.6,3218.5,3.547]
[1642471629706,6.43704211,3218.6,3218.5,3.547]
[1642471630146,6.12694211,3218.6,3218.5,3.547]
[1642471630548,3.80641577,3218.6,3218.5,3.547]
[1642471633252,6.12694211,3218.6,3218.5,3.547]
[1642471634499,3.80641577,3218.6,3218.5,3.547]
[1642471635099,3.51551577,3218.6,3218.5,3.547]
[1642471636304,5.06604786,3218.6,3218.5,3.547]
[1642471637553,3.51551577,3218.6,3218.5,3.547]
[1642471638448,5.83604211,3218.6,3218.5,3.547]
[1642471639149,0.85490635,3218.6,3218.5,3.547]
[1642471639848,3.51551577,3218.6,3218.5,3.547]
[1642471640249,3.21951577,3218.6,3218.5,3.547]
[1642471640654,3.21951577,3218.6,3218.5,5.37764516]
[1642471640853,3.21951577,3218.6,3218.5,5.37469423]
[1642471641054,3.21951577,3218.6,3218.5,5.37261013]
[1642471641298,3.21951577,3218.6,3218.5,3.547]
[1642471641502,4.77157626,3218.6,3218.5,3.547]
[1642471641702,4.77157626,3218.6,3218.5,5.35440393]
[1642471642301,3.21951577,3218.6,3218.5,5.35440393]
[1642471642503,3.21951577,3218.6,3218.5,3.547]
[1642471643303,4.76839337,3218.6,3218.5,3.547]
[1642471644204,3.21951577,3218.6,3218.5,3.547]
[1642471645548,2.91831577,3218.6,3218.5,3.547]
[1642471645748,2.91831577,3218.6,3218.5,5.42279214]
[1642471645947,4.46719337,3218.6,3218.5,5.54699214]
[1642471647156,2.91831577,3218.6,3218.5,5.54699214]
[1642471647354,2.91831577,3218.6,3218.5,3.6712]
[1642471647555,2.91831577,3218.6,3218.5,5.45227167]
[1642471648155,2.91831577,3218.6,3218.5,6.48037167]
[1642471648355,2.91831577,3218.6,3218.5,7.6843795]
[1642471648555,2.91831577,3218.6,3218.5,13.25799763]
[1642471649003,2.91831577,3218.6,3218.5,11.2803]
[1642471650104,2.91831577,3218.6,3218.5,11.28875298]
[1642471650509,2.62601577,3218.6,3218.5,11.28875298]
[1642471650908,2.62601577,3218.6,3218.5,10.28875298]
[1642471651507,2.62601577,3218.6,3218.5,11.28875298]
[1642471652111,1.5488776,3219.1,3218.5,11.28875298]
[1642471652313,1.5488776,3219.1,3218.7,1.15518125]
[1642471652554,0.00341055,3219.0,3218.8,0.447]
[1642471652748,0.00341055,3219.0,3218.5,8.81365298]
[1642471652749,0.00341055,3219.0,3218.9,0.447]
[1642471652948,1.5488776,3219.1,3218.5,8.68945298]
[1642471652949,0.00284212,3218.9,3218.5,8.68945298]
[1642471653149,0.00284212,3218.9,3218.6,0.447]
[1642471653349,0.0022737,3218.8,3218.6,0.447]
[1642471653750,0.00170527,3218.7,3218.6,0.447]
[1642471655554,1.25828287,3219.0,3218.8,1.45389956]
[1642471655755,1.25828287,3219.0,3218.9,0.447]
[1642471656703,2.32052634,3219.3,3218.9,0.447]
[1642471657105,0.00284212,3219.2,3218.9,0.447]
[1642471657507,0.0022737,3219.1,3218.9,0.447]
[1642471657907,0.00170528,3219.0,3218.9,0.447]
[1642471659907,0.00170528,3219.0,3218.9,0.45542428]
[1642471660560,2.03243162,3219.1,3218.9,0.45542428]
[1642471661057,3.07786654,3219.4,3218.9,0.45542428]
[1642471661458,0.00170527,3219.3,3218.9,0.45542428]
[1642471661859,0.00113684,3219.2,3218.9,0.45542428]
[1642471665704,2.78400338,3219.3,3218.9,0.45542428]
[1642471665906,2.78400338,3219.3,3219.0,0.00113684]
[1642471666106,2.04539249,3219.5,3219.0,0.00113684]
[1642471666506,0.33239662,3219.4,3219.0,0.00113684]
[1642471667957,0.33125977,3219.3,3219.0,0.00113684]
[1642471669862,0.33460174,3219.3,3219.0,0.00113684]
[1642471670264,0.33460174,3219.3,3218.8,0.00227369]
[1642471670465,2.32833967,3219.1,3218.8,0.00227369]
[1642471670863,2.02813967,3219.1,3218.8,0.00227369]
[1642471671409,2.66002608,3219.0,3218.8,0.00227369]
[1642471672210,2.66336805,3219.3,3218.8,0.00227369]
[1642471673210,1.55251147,3218.9,3218.8,0.00227369]
[1642471673812,0.33133164,3219.2,3218.8,0.00227369]
[1642471675055,0.00334356,3218.9,3218.8,0.00227369]
[1642471675853,2.66002608,3219.1,3218.8,0.00227369]
[1642471675854,2.37266964,3219.1,3218.8,0.00227369]
[1642471676053,2.37266964,3219.1,3218.9,0.1242]
[1642471676255,2.37266964,3219.1,3218.8,0.12647369]
[1642471676455,2.37266964,3219.1,3218.8,0.00227369]
[1642471676657,2.37266964,3219.1,3218.9,0.00170527]
[1642471676857,2.37266964,3219.1,3219.0,0.1242]
[1642471677058,2.37266964,3219.1,3218.9,0.1242]
[1642471677258,2.37266964,3219.1,3219.0,0.447]
[1642471677464,2.37266964,3219.1,3219.0,0.5712]
[1642471677659,0.33136007,3219.1,3219.0,0.5712]
[1642471679310,0.33136007,3219.3,3219.1,1.27425266]
[1642471679511,0.33136007,3219.3,3219.2,0.447]
[1642471679911,0.33136007,3219.3,3219.2,0.5712]
[1642471680710,0.33136007,3219.3,3219.2,2.01799781]
[1642471680913,0.03886007,3219.3,3219.2,2.01799781]
[1642471681111,0.03886007,3219.3,3219.2,0.447]
[1642471682113,0.00113685,3219.4,3219.2,0.447]
[1642471682553,2.33212318,3219.4,3219.2,0.447]
[1642471683358,2.33098633,3219.3,3219.2,0.447]
[1642471684157,2.04615237,3219.4,3219.2,3.547]
[1642471684360,2.15948275,3219.3,3219.2,3.1]
[1642471684557,3.10615978,3219.4,3219.2,3.1]
[1642471684758,2.15,3219.3,3219.2,3.1]
[1642471684964,4.18859231,3219.3,3219.2,3.1]
[1642471685161,2.15,3219.3,3219.2,3.1]
[1642471685362,5.25502293,3219.3,3219.2,3.1]
[1642471685964,4.95912293,3219.3,3219.2,3.1]
[1642471686435,1.15597521,3219.1,3218.8,0.00227369]
[1642471686832,1.15597521,3219.1,3218.7,0.00284212]
[1642471687635,1.15597521,3219.1,3218.7,0.12704212]
[1642471687834,2.32214051,3219.0,3218.7,0.12704212]
[1642471688033,2.32214051,3219.0,3218.8,0.00227369]
[1642471688635,1.15597521,3219.1,3218.8,0.00227369]
[1642471691050,0.86427521,3219.1,3218.8,0.00227369]
[1642471692053,0.86427521,3219.1,3218.7,0.00284212]
[1642471693654,0.86427521,3219.1,3218.8,0.1242]
[1642471694102,0.86427521,3219.1,3218.9,0.00170527]
[1642471694700,0.86427521,3219.1,3218.8,0.00227369]
[1642471695302,3.18641572,3219.1,3218.9,3.1]
[1642471696004,2.6597438,3219.0,3218.9,3.1]
[1642471696204,2.3631438,3219.0,3218.9,3.1]
[1642471696406,2.3631438,3219.0,3218.9,3.10170527]
[1642471698757,3.91281142,3219.0,3218.9,3.10170527]
[1642471701301,3.62021142,3219.0,3218.9,3.10170527]
[1642471701507,3.62021142,3219.0,3218.9,3.22590527]
[1642471702705,2.0705438,3219.0,3218.9,3.22590527]
[1642471703508,2.0705438,3219.0,3218.9,3.67290527]
[1642471704709,2.39091677,3219.0,3218.9,3.67290527]
[1642471706256,1.7780438,3219.0,3218.9,3.54870527]
[1642471708562,1.7780438,3219.0,3218.9,3.67290527]
[1642471708802,1.7780438,3219.0,3218.9,3.54870527]
[1642471710003,1.7780438,3219.0,3218.9,3.55849663]
[1642471711410,1.4830438,3219.0,3218.9,3.55849663]
[1642471711609,1.4830438,3219.0,3218.9,6.12639663]
[1642471714370,0.86427521,3219.1,3218.9,6.12639663]
[1642471714575,0.86427521,3219.1,3219.0,1.1242]
[1642471714870,0.86427521,3219.1,3219.0,1.447]
[1642471715870,0.86427521,3219.1,3219.0,1.5712]
[1642471716305,0.86427521,3219.1,3219.0,1.447]
[1642471716509,0.57217521,3219.1,3219.0,0.447]
[1642471717311,0.54001173,3219.1,3219.0,1.5712]
[1642471718111,0.54001173,3219.1,3219.0,0.447]
[1642471720059,0.54001173,3219.1,3219.0,1.447]
[1642471721056,0.54001173,3219.1,3219.0,1.5712]
[1642471721658,0.23901173,3219.1,3219.0,1.5712]
[1642471722660,0.23901173,3219.1,3219.0,0.447]
[1642471724311,0.23901173,3219.1,3219.0,0.5712]
[1642471724511,0.23901173,3219.1,3219.0,1.5712]
[1642471724913,0.23901173,3219.1,3219.0,1.8712]
[1642471726113,0.23901173,3219.1,3219.0,0.747]
[1642471726313,0.23901173,3219.1,3219.0,0.447]
[1642471726514,0.23901173,3219.1,3219.0,0.8712]
[1642471726713,7.01770384,3220.1,3219.0,0.8712]
[1642471726914,7.01770384,3220.1,3219.1,0.1242]
[1642471727115,0.00454739,3220.0,3219.2,0.447]